Cogmind - Beta 13 @@@ ROGUE MODE // 2024.04.15 @ 10:58:06 Player: Millea Result: Destroyed by H-61 Shepherd with Heavy Assault Cannon Performance ------------- Evolutions (2) 1000 Regions Visited (4) 800 Robots Destroyed (124) 620 Value Destroyed (3066) 3066 Prototype IDs (16) 320 Alien Tech Used (0) 0 Bonus (436) 436 TOTAL SCORE: 6242 Bonus ------- High Alert Combat Kills 357 Follower Combat Kills 79 Cogmind --------- Core Integrity 0/550 Matter 27/300 Energy 100/100 System Corruption 0% Temperature Cool (0) Movement Treading (165) Location -8/Materials Parts ------- > --- POWER (1) -------- (None) > --- PROPULSION (2) --- Spiked Treads Armored Treads > --- UTILITY (6) ------ Large Storage Unit Makeshift Light Armor Plating Makeshift Light Armor Plating Makeshift Light Armor Plating > --- WEAPON (2) ------- Subdweller Shrapnel Launcher > --- INVENTORY (15) --- Light Treads Light Treads Spiked Treads Makeshift Light Armor Plating Makeshift Kinetic Plating Makeshift Thermal Plating Scrap Shield Hacking Suite Hacking Suite Makeshift System Restoration Module Subdweller Machine Gun Battle Cannon Battle Cannon Ripper Peak State ------------ > --- POWER ------------ Heavy Deuterium Engine > --- PROPULSION ------- Light Treads Armored Treads > --- UTILITY ---------- Large Storage Unit Makeshift Light Armor Plating Makeshift Light Armor Plating Makeshift Light Armor Plating Makeshift Thermal Plating Insulated Plating > --- WEAPON ----------- Ripper Makeshift Spear > --- INVENTORY -------- Subdweller Power Source Light Treads Light Treads Makeshift System Shield Cobbler Unit Power Bank Gatling Laser Battle Rifle Subdweller Machine Gun Subdweller Machine Gun Slug Cannon Flamer Makeshift Axe [Rating: 41] Favorites ----------- Power Heavy Deuterium Engine Engine Heavy Deuterium Engine Power Core Light Nuclear Core Propulsion Light Treads Treads Light Treads Wheel Compact Wheel Utility Makeshift Light Armor Plating Device Cobbler Unit Storage Large Storage Unit Processor Core Analyzer Protection Makeshift Light Armor Plating Weapon Heavy Battle Rifle Energy Gun Gatling Laser Energy Cannon Beam Cannon Ballistic Gun Heavy Battle Rifle Launcher Subdweller Shrapnel Launcher Special Weapon Multitool Slashing Weapon Ripper Piercing Weapon Makeshift Spear Build | -11 -10 -10 -10 -8 ------- Run | Yrd Mat Min Sub Mat Slots Evolved 4 | . . . . 4 Power . | . . . . . Propulsion . | . . . . . Utility 4 | . . . . 4 Weapon . | . . . . . Parts Attached 83 | 5 5 2 13 58 Power 8 | 2 . 1 1 4 Engine 6 | 2 . . 1 3 Core 2 | . . 1 . 1 Reactor . | . . . . . Propulsion 11 | . 2 . 1 8 Treads 8 | . 2 . 1 5 Leg . | . . . . . Wheel 3 | . . . . 3 Hover . | . . . . . Flight . | . . . . . Utility 36 | 2 1 . 4 29 Device 10 | 1 . . . 9 Storage 3 | 1 . . . 2 Processor 2 | . . . . 2 Hackware . | . . . . . Protection 21 | . 1 . 4 16 Artifact . | . . . . . Weapon 28 | 1 2 1 7 17 Energy Gun 6 | . 1 . 2 3 Energy Cannon 1 | . 1 . . . Ballistic Gun 11 | 1 . 1 5 4 Ballistic Cannon . | . . . . . Launcher 3 | . . . . 3 Special Weapon 5 | . . . . 5 Impact Weapon . | . . . . . Slashing Weapon 1 | . . . . 1 Piercing Weapon 1 | . . . . 1 Special Melee Weapon . | . . . . . Unidentified Prototypes 1 | . . . . 1 Parts Lost 14 | . . . 4 10 Power 3 | . . . 1 2 Propulsion 4 | . . . 1 3 Utility 6 | . . . 1 5 Weapon 1 | . . . 1 . Highest Loss Streak 3 | . . . 3 2 To Critical Strikes . | . . . . . Average Slot Usage (%) 83 | . 88 100 85 80 Engine 6 | . 14 1 5 7 Core 3 | . . 12 7 . Treads 19 | . 18 28 27 13 Wheel 1 | . . . . 3 Device 4 | . 6 . . 8 Storage 3 | . 14 14 1 2 Processor 3 | . . . . 6 Protection 19 | . 7 14 14 22 Energy Gun 2 | . 10 . . 2 Ballistic Gun 12 | . 14 14 26 3 Slashing Weapon 3 | . . . . 5 Piercing Weapon 1 | . . . . 3 Naked Turns . | . . . . . Heaviest Build 70 | 13 18 20 31 70 Greatest Support 40 | 3 40 40 40 40 Greatest Overweight (x) 4 | 4 4 . 1 4 Average Overweight (x) . | 2 . . . 1 Largest Inventory Capacity 15 | 8 8 8 8 15 Average Capacity 7 | 7 8 8 5 8 Most Carried 15 | 8 8 8 8 15 Average Carried 6 | 6 6 7 5 7 Final Capacity 15 | 8 8 8 5 15 Final Carried 15 | 8 7 8 5 15 Class Distribution -------------------- 56% | Mutant 28% | Cobbler-Mutant 9% | Subdweller-Mutant 4% | Derelict-Mutant Dominant Class ---------------- Mutant | -10/Materials Mutant | -10/Mines Mutant | -10/Subcaves Cobbler-Mutant | -8/Materials Resources | -11 -10 -10 -10 -8 ----------- Run | Yrd Mat Min Sub Mat Matter Collected 5130 | 165 160 85 1053 3667 Remotely 660 | . . . . 660 Salvage Created 4666 | 30 135 337 824 3340 Parts 274 | 7 12 18 53 184 Haulers Intercepted 5 | . 1 . . 4 Recyclers Shooed 4 | 1 . . . 3 Parts Field Recycled . | . . . . . Retrieved Matter . | . . . . . Parts Self-Destructed 24 | . . . 24 . Prevented . | . . . . . Kills | -11 -10 -10 -10 -8 ------- Run | Yrd Mat Min Sub Mat Combat Hostiles Destroyed 75 | . 4 7 18 46 Melee 20 | . . . . 20 Guns 40 | . 4 4 18 14 Cannons 3 | . . 3 . . AOE 12 | . . . . 12 Classes Destroyed 14 | 1 3 2 2 6 Worker 24 | . . 2 . 22 Builder 8 | . . . . 8 Tunneler 5 | 2 . . . 3 Hauler 5 | . 1 . . 4 Recycler 7 | . . 1 . 6 Mechanic 2 | . . . . 2 Watcher 5 | . . . . 5 Swarmer 14 | . 3 4 1 6 Grunt 36 | . 1 3 1 31 Brawler 4 | . . . . 4 Duelist 2 | . . . . 2 Sentry 3 | . . . . 3 Cobbler 1 | . . . 1 . Subdweller 16 | . . . 16 . Best Kill Streak 8 | 2 4 3 2 8 Combat Bots Only 8 | . 4 3 2 8 Max Kills in Single Turn 3 | 1 1 1 1 3 Gunslinging 1 | . . . . 1 Exploded 3 | . . . . 3 Melee 1 | . . . . 1 Uniques/NPCs Destroyed . | . . . . . Combat | -11 -10 -10 -10 -8 -------- Run | Yrd Mat Min Sub Mat Hostile Shots Fired 458 | . 11 18 100 329 Missed 117 | . 1 2 27 87 Damage Taken 5887 | . 112 164 1614 3997 Core 720 | . . 19 149 552 Absorbed by Shields . | . . . . . Ignored by Resistances 147 | . . . . 147 Core Remaining (%) 66 | 100 . . 32 . Volleys Fired 327 | 3 9 18 196 101 Largest 2 | 1 2 2 2 2 Hottest 160 | 20 60 93 100 160 Shots Fired 559 | 3 18 36 354 148 Gun 518 | 3 18 18 349 130 Cannon 23 | . . 18 5 . Launcher 16 | . . . . 16 Special 2 | . . . . 2 Kinetic 472 | 3 9 18 333 109 Thermal 76 | . 9 18 10 39 Explosive . | . . . . . Electromagnetic 11 | . . . 11 . Robot Hit Streak 16 | 2 13 8 13 16 Robot Miss Streak 7 | 1 1 3 3 7 Penetration Max . | . . . . . Secondary Targets 5 | . 1 . 1 3 Max Gunslinging Chain 1 | . 1 . 1 1 Shots Hit Robots 376 | 2 15 19 134 206 Core Hits 183 | 2 8 12 45 116 Critical Kills 2 | . . 1 1 . Critical Parts Destroyed . | . . . . . Critical Strikes 12 | . . 1 1 10 Destroy 2 | . . 1 1 . Sever 7 | . . . . 7 Impale 3 | . . . . 3 Melee Attacks 137 | . . . . 137 Impact . | . . . . . Slashing 112 | . . . . 112 Piercing 25 | . . . . 25 Sneak Attacks 42 | . . . . 42 Combat Hostiles . | . . . . . Follow-up Attacks 13 | . . . . 13 Damage Inflicted 12165 | 22 172 320 2615 9036 Guns 4555 | 22 172 141 2562 1658 Cannons 227 | . . 174 53 . Explosions 1958 | . . . . 1958 Melee 5379 | . . . . 5379 Ramming 37 | . . 5 . 32 Kinetic 5699 | 22 73 141 2409 3054 Thermal 918 | . 99 174 74 571 Explosive . | . . . . . Electromagnetic 132 | . . . 132 . Impact . | . . . . . Slashing 4636 | . . . . 4636 Piercing 743 | . . . . 743 Highest Corruption . | . . . . . Average Corruption . | . . . . . Corruption Purged . | . . . . . Corruption Blocked . | . . . . . Overload Shots . | . . . . . Overflow Damage 847 | . . 14 . 833 Projectiles 14 | . . 14 . . Explosions 27 | . . . . 27 Melee 806 | . . . . 806 Knockbacks . | . . . . . Impact . | . . . . . Kinetic . | . . . . . Secondary . | . . . . . Self-Inflicted Damage 241 | . . . . 241 Shots 8 | . . . . 8 Rammed 9 | . . 2 . 7 Targets Rammed 11 | . . 2 . 9 Kicked . | . . . . . Crushed 2 | . . . . 2 Highest Temperature 452 | . 45 150 3 452 Average Temperature 76 | . 17 48 3 79 Received Heat Transfer 1776 | . 57 51 216 1452 Effects 1 | . . . . 1 Interference 1 | . . . . 1 Siege Activations . | . . . . . Robots Corrupted . | . . . . . Combat Hostiles . | . . . . . Parts Fried 1 | . . . 1 . Impact Corruptions . | . . . . . Robots Melted . | . . . . . Combat Hostiles . | . . . . . Parts Melted 2 | . . 1 . 1 Heat Transferred 1856 | . 225 370 161 1100 Parts Sabotaged . | . . . . . Parts Stolen . | . . . . . Parts Stripped . | . . . . . Power Chain Reactions . | . . . . . Alert | -11 -10 -10 -10 -8 ------- Run | Yrd Mat Min Sub Mat Peak Influence 1137 | 10 114 245 . 1137 Initial 44 | . 6 44 . . Average 229 | 3 73 135 . 242 Maximum Alert Level 4 | . . 1 . 4 Low Security (%) 53 | 100 100 67 . 50 Level 1 36 | . . 32 . 37 Level 2 2 | . . . . 3 Level 3 7 | . . . . 8 Level 4 . | . . . . . Level 5 . | . . . . . High Security . | . . . . . Max Security . | . . . . . Squads Dispatched 11 | . . . . 11 Investigation 3 | . . . . 3 Extermination . | . . . . . Reinforcement 4 | . . . . 4 Assault 4 | . . . . 4 Garrison . | . . . . . Intercept . | . . . . . Searches Triggered . | . . . . . Construction Impeded 1 | . . . . 1 Haulers Reinforced . | . . . . . Active Scanning Responses . | . . . . . Cargo Convoy Interrupts . | . . . . . Stealth | -11 -10 -10 -10 -8 --------- Run | Yrd Mat Min Sub Mat Distress Signals 3 | . . . . 3 Communications Jammed . | . . . . . Distress Signals . | . . . . . Times Spotted 114 | . 7 10 24 73 Peak Tracking Total 8 | . 5 3 2 8 Tactical Retreats 9 | . . . 1 8 Traps | -11 -10 -10 -10 -8 ------- Run | Yrd Mat Min Sub Mat Traps Triggered 2 | . . . 2 . Indirectly . | . . . . . Trap Hack Attempts . | . . . . . Triggered . | . . . . . Disarmed . | . . . . . Reprogrammed . | . . . . . Reused 3 | . . . . 3 Traps Extracted . | . . . . . Installed 3 | . . . . 3 Triggered 3 | . . . . 3 Most Traps Carried 1 | . . . . 1 Machines | -11 -10 -10 -10 -8 ---------- Run | Yrd Mat Min Sub Mat Machines Disabled 8 | . . 1 1 6 Max in Single Turn 1 | . . 1 1 1 Garrison Access 1 | . . . . 1 Machines Repaired . | . . . . . Machines Dismantled . | . . . . . Machines Sabotaged . | . . . . . Overloaded Fab Kills . | . . . . . Hacking | -11 -10 -10 -10 -8 --------- Run | Yrd Mat Min Sub Mat Machines Accessed 11 | . 1 . 2 8 Terminals 6 | . 1 . . 5 Fabricators . | . . . . . Repair Stations . | . . . . . Recycling Units 1 | . . . . 1 Scanalyzers 1 | . . . . 1 Garrison Access 1 | . . . . 1 Total Hacks 38 | . 8 . 5 25 Successful 21 | . 5 . 5 11 Failed 17 | . 3 . . 14 Catastrophic 6 | . 1 . . 5 Database Lockouts . | . . . . . Manual 25 | . 6 . 1 18 Terminals 25 | . 8 . . 17 Fabricators . | . . . . . Repair Stations . | . . . . . Recycling Units 3 | . . . . 3 Scanalyzers 2 | . . . . 2 Garrison Access 3 | . . . . 3 Terminal Hacks 13 | . 4 . 5 4 Record 4 | . . . 4 . Part Schematic 1 | . . . . 1 Robot Analysis 1 | . . . . 1 Prototype ID Bank 4 | . 4 . . . Alert Level 1 | . . . . 1 Unreport Threat 1 | . . . . 1 Derelict Proto ID Bank 1 | . . . 1 . Fabricator Hacks . | . . . . . Repair Station Hacks . | . . . . . Recycling Unit Hacks . | . . . . . Scanalyzer 2 | . . . . 2 Insert Component 1 | . . . . 1 Analyze 1 | . . . . 1 Garrison Access Hacks . | . . . . . Unauthorized Hacks 6 | . 1 . . 5 Terminals 4 | . 1 . . 3 Botnet 4 | . 1 . . 3 Fabricators . | . . . . . Repair Stations . | . . . . . Recycling Units 2 | . . . . 2 Reject 1 | . . . . 1 Mask 1 | . . . . 1 Scanalyzers . | . . . . . Garrison Access . | . . . . . Data Cores Recovered . | . . . . . Used . | . . . . . Hacking Detections 8 | . 1 . . 7 Full Trace Events 4 | . . . . 4 Feedback Events . | . . . . . Feedback Blocked . | . . . . . Robot Schematics Acquired . | . . . . . Robots Built . | . . . . . Authchips . | . . . . . Time . | . . . . . Total Robot Build Rating . | . . . . . Part Schematics Acquired 2 | . . . . 2 Parts Built . | . . . . . Authchips . | . . . . . Time . | . . . . . Total Part Build Rating . | . . . . . Parts Repaired . | . . . . . Time . | . . . . . Parts Recycled . | . . . . . Recycled Matter . | . . . . . Retrieved Matter . | . . . . . Retrieved Components . | . . . . . Parts Scanalyzed 1 | . . . . 1 Part Schematics Acquired 1 | . . . . 1 Parts Damaged . | . . . . . Bothacking | -11 -10 -10 -10 -8 ------------ Run | Yrd Mat Min Sub Mat Used RIF Installer . | . . . . . Robots Hacked . | . . . . . Non-combat . | . . . . . Combat . | . . . . . Robot Hacks Applied . | . . . . . Relay Couplers Released . | . . . . . Fabnet Peak Effective % . | . . . . . Robots Rewired . | . . . . . Allies Hacked . | . . . . . Hacks Repelled . | . . . . . Allies | -11 -10 -10 -10 -8 -------- Run | Yrd Mat Min Sub Mat Total Allies 3 | . . 3 . . Largest Group 3 | . . 3 2 . Highest-Rated Group 40 | . . 40 32 . Highest-Rated Ally 16 | . . 16 16 . Total Orders . | . . . . . Ally Attacks 27 | . . 22 5 . Total Damage 289 | . . 225 64 . Kills 4 | . . 3 1 . Allies Corrupted . | . . . . . Allies Melted . | . . . . . Intel | -11 -10 -10 -10 -8 ------- Run | Yrd Mat Min Sub Mat Robot Analysis Total 1 | . . . . 1 Derelict Logs Recovered 3 | . . 1 2 . Drone Launches . | . . . . . Drone Recoveries . | . . . . . Exploration | -11 -10 -10 -10 -8 ------------- Run | Yrd Mat Min Sub Mat Turns Passed 14682 | 99 217 579 5341 8446 Spaces Moved 5470 | 51 96 315 2824 2184 Core 73 | 51 22 . . . Treads 4627 | . 74 315 2824 1414 Legs . | . . . . . Wheels 770 | . . . . 770 Hover . | . . . . . Flight . | . . . . . Fastest Speed 50 | 50 160 160 160 105 Average Speed 169 | 156 180 160 160 183 Slowest Speed 360 | 250 250 160 240 360 Overloaded Moves . | . . . . . Propulsion Burnouts . | . . . . . Robots Hopped . | . . . . . Cave-ins Triggered . | . . . . . Exploration Rate (%) 51 | 4 24 60 96 74 Regions Visited 4 Branch Regions 2 Pre-discovered Areas 2 | . . . 2 . Known Exits Taken . | . . . . . Unknown Exits Taken 4 | 1 1 1 1 . Scrap Searched 15 | . . . 15 . Spaces Dug 15 | . . . 15 . Terrain Destroyed 175 | . . . 18 157 Melee . | . . . . . Projectile 26 | . . . 18 8 AOE 149 | . . . . 149 Terrain Rammed . | . . . . . Walls Destroyed . | . . . . . Machines Disabled . | . . . . . Actions | -11 -10 -10 -10 -8 --------- Run | Yrd Mat Min Sub Mat Total 10125 | 67 122 353 3294 6289 Wait 3967 | . 5 16 219 3727 Move 5466 | 50 95 314 2823 2184 Hop . | . . . . . Pick Up 53 | 8 5 . 7 33 Fast Attach 42 | 4 . . 10 28 Attach 19 | . 3 . . 16 Detach 5 | . . . . 5 Swap 22 | 1 2 2 3 14 Drop 72 | 1 3 1 18 49 Fire 327 | 3 9 18 196 101 Melee 118 | . . . . 118 Ram 3 | . . . . 3 Kick . | . . . . . Crush 8 | . . 2 . 6 Escape Stasis . | . . . . . Rewire . | . . . . . Trap 3 | . . . . 3 Miscellaneous 20 | . . . 18 2 Route ------- -11/Scrapyard -10/Materials (discovered 2 exits: [*Min x2]) -10/Mines (discovered 2 exits: [*Mat] / *Sub) -10/Subcaves (discovered 2 exits: *Mat x2) -8/Materials (discovered 1 exit: [*Fac]) History --------- Turn | Location | Event 4 | -11/Scrapyard | Discovered new exit (range 15) 100 | -11/Scrapyard | Entered Materials 118 | -10/Materials | Discovered new exit (range 11) 272 | -10/Materials | Discovered new exit (range 7) 317 | -10/Materials | Entered Mines 323 | -10/Mines | Build established: Mutant 324 | -10/Mines | Assisted by bots powering up and referring to "LRC-V3" 469 | -10/Mines | Discovered new exit (range 8) 644 | -10/Mines | A weapon hastily lodged in a ceiling crevice suddenly fell to the ground 879 | -10/Mines | Discovered new exit (range 3) 896 | -10/Mines | Entered Subcaves 896 | -10/Subcaves | Accompanied by 2 allies 939 | -10/Subcaves | A swath of the cavern ceiling suddenly collapsed 1031 | -10/Subcaves | Shifting Twisted Machinery released Barrage Gun 1283 | -10/Subcaves | Shifting Twisted Machinery released Sub. Shrapnel Launcher 1288 | -10/Subcaves | Shifting Twisted Machinery released Mak. Leg 1360 | -10/Subcaves | Shifting Twisted Machinery released Battle Cannon 1366 | -10/Subcaves | Shifting Twisted Machinery released Sub. Shrapnel Launcher 1956 | -10/Subcaves | Discovered new exit (range 16) 2044 | -10/Subcaves | Visited 4L-MR0's lab 2070 | -10/Subcaves | Found Power Bank 2508 | -10/Subcaves | A swath of the cavern ceiling suddenly collapsed 2758 | -10/Subcaves | Discovered new exit (range 16) 3141 | -10/Subcaves | Visited Clippyterm 3146 | -10/Subcaves | Learned location of Extension (-4) 3616 | -10/Subcaves | Lost 3 parts (1p1n1w) 4537 | -10/Subcaves | Build established: Subdweller-Mutant 4791 | -10/Subcaves | Shifting Twisted Machinery released Sub. Machine Gun 5071 | -10/Subcaves | Core integrity fell below 50% 5626 | -10/Subcaves | Ambushed by Subdweller buried in earth 6001 | -10/Subcaves | Build established: Mutant 6237 | -10/Subcaves | Entered Materials 6237 | -8/Materials | Evolved 4 slots: Utility x4 6483 | -8/Materials | Build established: Derelict-Mutant 7258 | -8/Materials | Build established: Mutant 10974 | -8/Materials | Build established: Cobbler-Mutant 11777 | -8/Materials | Core integrity fell below 50% 14237 | -8/Materials | First assault squad dispatched 14350 | -8/Materials | Destroyed 8 combat bots 14649 | -8/Materials | Core integrity fell below 20% 14666 | -8/Materials | Discovered new exit (range 15) 14683 | -8/Materials | Destroyed by H-61 Shepherd with Heavy Assault Cannon Last Messages --------------- 14650_ G-50 Soldier destroyed. 14653_ Sub. Shrapnel Launcher shoots sparks and powers down. 14653_ Scrap Shield destroyed. 14653_ Destroyed Scrap Shield. 14653_ L-31 Rogue destroyed. 14665_ Broken Sub. Shrapnel Launcher blasted off. 14666_ Acquired 7 matter. 14666_ EXIT=FOUND 14667_ Penetrated by Slug. 14669_ Lgt. Nuclear Core destroyed. 14672_ H-61 Shepherd calls for reinforcements. 14672_ ALERT: Hostile activity reported, dispatching reinforcements to area. 14672_ Penetrated by Slug. 14673_ Destroyed Weapon Cycler. 14675_ Acquired 2 matter. 14678_ Penetrated by Slug. 14682_ Acquired 18 matter. Map ----- +----------------------------------------------------+ | ??# !! """ # # #????????????????????? | | ??# !! # # ! #????????????????????? | | ??+ !! # #############????????????????????? | | ??# !# # #?????????????????????????? | | ??########### # #?????????????????????????? | | ####????????# # "" ! #?????????????????????????? | | #????????# + "T #?????????????????????????? | | #????????# # "" #?????????????????????????? | | #????????# # #?????????????????????????? | | #????????# ########?????????????????????????? | | ####?######## ########?????????????????????????? | | #????# # # ! #?????????????????????????? | | #????# ! [# # #?????????????????????????? | | #??!!# ! + # #?????????????????????????? | | # =!!# [# # #?????????????????????????? | | + =!!#! ! !!# # #?????????????????????????? | | # # !!# # #???????????""????????????? | | #?? #+###### # #?????????? ""????????????? | | ###### #????# # #????????? """???????????? | | #????# # * #???####?= ????????????? | | ###### #????# %+ #### # # ""????????????? | | ?????# #????# # ## ; "" #?????????? | | ######+###### # ! ; ;?????????? | | + ## ;;;;;#%% ;#????????? | | ### """ # ;;;;%; ;#????????? | | ??# """ # [ @ #????????? | | ###= """ + % ] H< #????????? | | # # % = #????????? | | # """ # ;;;; ?????????? | | # [ """ ###;;;##### ?????????? | | # """ #?####????#### ######??????????? | | !# ??????????????#########???????????????? | | ###########??????????????????????????????????????? | | | | | | | | | | | | | | | | | | | | | | | | | | | | | | | | | | | +----------------------------------------------------+ Best States ------------- Heat Dissipation 45 Energy Generation 18 Energy Capacity 310 Matter Stores 300 Matter Capacity 300 Sight Range 16 Terrain Scan Density 10 Armor Coverage 1325 Resistance: KI 10 Resistance: TH 10 Resistance: EM 15 Evasion (%) 50 Core Analysis 9 Recoil Reduction 2 Item Schematics ----------------- Imp. VTOL Module | -8/Materials | Hacked Mak. System Shield | -8/Materials | Scanalyzed Robot Schematics ------------------ None Fabricated ------------ Nothing Alien Tech Used ----------------- None Achievements -------------- None Challenges ------------ None Game ------ Seed MassSuspensionMegatreads Manual? 0 Play Time 01:07:58 Cumulative 201.6 hours Start 2024.04.14 @ 23:34:55 End 2024.04.15 @ 10:58:06 Sessions 3 Manual Loads 0 Difficulty Rogue Special Mode None Game No. 163 Rogue 163 Adventurer 0 Explorer 0 Win Type - Total 4 Types 4/0/0/0/0/0/0/0/0 Lore% 70 Gallery% 77 Achievement% 64 Wizard Run 0 Options --------- Layout 2 ASCII 1 Keyboard 0 Movement Mouse Keybinds 0 Fullscreen 2 Font 24/Smallcaps Map View 50x44 Zoom Use 0% Tactical HUD 1 Map Filters NONE Filters NONE Steam 1 RUN: 3d808e8c-c091-4753-a950-477beb16ae13